fUSD/lending_fUSD_20251222
["ID","MTS","AMOUNT","RATE_DAILY","PERIOD"]
[399465024,1766381439038,-500.0,0.00013833,2]
[399465025,1766381439047,-500.0,0.00013833,2]
[399465026,1766381439057,-500.0,0.00013833,2]
[399465027,1766381439066,-500.0,0.00013833,2]
[399465028,1766381439076,-500.0,0.00013833,2]
[399465029,1766381439085,-500.0,0.00013833,2]
[399465030,1766381439095,-500.0,0.00013833,2]
[399465031,1766381439105,-574.81599122,0.00013833,2]
[399465032,1766381439114,-500.0,0.00013833,2]
[399465033,1766381439123,-534.39778007,0.00013833,2]
[399465034,1766381439132,-506.35570593,0.00013833,2]
[399465035,1766381439142,-500.0,0.00013833,2]
[399465036,1766381439151,-500.0,0.00013833,2]
[399465037,1766381439160,-500.0,0.00013833,2]
[399465038,1766381439170,-500.0,0.00013833,2]
[399465039,1766381439179,-500.0,0.00013833,2]
[399465040,1766381439189,-500.0,0.00013833,2]
[399465041,1766381439198,-500.0,0.00013833,2]
[399465042,1766381439210,-500.0,0.00013917,2]
[399465043,1766381439220,-2056.87,0.00013917,2]
[399465044,1766381439230,-166.66,0.00013942,2]
[399465045,1766381439240,-1500.0,0.00014,2]
[399465046,1766381439249,-1050.83828415,0.00014,2]
[399465047,1766381439258,-300.0,0.00014018,2]
[399465048,1766381439268,-300.0,0.00014018,2]
[399465049,1766381439279,-300.0,0.00014018,2]
[399465050,1766381439288,-300.0,0.00014018,2]
[399465051,1766381439298,-242.51667222,0.00014018,2]
[399465052,1766381439307,-300.0,0.00014018,2]
[399465053,1766381439317,-300.0,0.00014018,2]
[399465054,1766381439327,-300.0,0.00014018,2]
[399465055,1766381439337,-300.0,0.00014018,2]
[399465056,1766381439347,-300.0,0.00014018,2]
[399465057,1766381439356,-195.0,0.00014018,2]
[399465058,1766381439366,-3360.57833469,0.00014018,4]
[399465059,1766381439375,-250.0,0.00014018,2]
[399465060,1766381439384,-1172.38217764,0.00014018,4]
[399465061,1766381439394,-250.0,0.00014018,2]
[399465062,1766381439403,-6714.30851753,0.00014072,2]
[399465063,1766381439413,-255.0,0.00014093,2]
[399465064,1766381439423,-551.73,0.00014148,2]
[399465065,1766381439433,-25148.83872382,0.0001416,2]
[399465066,1766381439444,-1000.0,0.00014191,2]
[399465067,1766381439454,-1000.0,0.00014191,2]
[399465068,1766381439464,-1000.0,0.00014191,2]
[399465069,1766381439473,-1000.0,0.00014191,2]
[399465070,1766381439482,-1000.0,0.00014191,2]
[399465071,1766381439492,-1000.0,0.00014191,2]
[399465072,1766381439501,-1000.0,0.00014191,2]
[399465073,1766381439511,-1000.0,0.00014191,2]
[399465074,1766381439520,-1000.0,0.00014191,2]
[399465075,1766381439529,-1000.0,0.00014191,2]
[399465076,1766381439539,-1000.0,0.00014191,2]
[399465077,1766381439548,-1000.0,0.00014191,2]
[399465078,1766381439557,-937.07935653,0.00014191,2]
[399465079,1766381439567,-1000.0,0.00014191,2]
[399465080,1766381439576,-1000.0,0.00014191,2]
[399465081,1766381439585,-866.5623891,0.00014191,2]
[399465082,1766381439595,-1000.0,0.00014191,2]
[399465083,1766381439604,-1000.0,0.00014191,2]
[399465084,1766381439613,-1000.0,0.00014191,2]
[399465085,1766381439626,-1000.0,0.00014191,2]
[399465086,1766381439636,-1000.0,0.00014191,2]
[399465087,1766381439648,-1000.0,0.00014191,2]
[399465088,1766381439657,-1000.0,0.00014191,2]
[399465089,1766381439668,-500.81193052,0.00014191,2]
[399465090,1766381439680,-1144.6648404,0.00014191,2]
[399465091,1766381439689,-1000.0,0.00014191,2]
[399465092,1766381439702,-500.0,0.00014191,2]
[399465093,1766381439711,-2056.87,0.00014191,2]
[399465094,1766381439720,-420.0,0.00014244,2]
[399465095,1766381439730,-420.0,0.00014244,2]
[399465096,1766381439739,-334.19790006,0.00014275,2]
[399465097,1766381439749,-1680.0,0.00014287,2]
[399465098,1766381439758,-166.66,0.00014387,2]
[399465099,1766381439767,-10279.41003921,0.0001439,2]
[399465101,1766381439784,-6714.30851753,0.00014425,2]
[399465102,1766381439796,-500.0,0.00014465,2]
[399465103,1766381439805,-2056.87,0.00014465,2]
[399465104,1766381439815,-25148.83872382,0.00014502,2]
[399465105,1766381439824,-3301.98750385,0.0001451,2]
[399465106,1766381439834,-152.01,0.00014591,2]
[399465107,1766381439844,-308.12068723,0.00014634,2]
[399465108,1766381439853,-189.92,0.00014646,2]
[399465109,1766381439864,-334.19790006,0.00014733,2]
[399465110,1766381439873,-151.0,0.00014736,2]
[399465111,1766381439883,-659.366475,0.00014739,2]
[399465112,1766381439892,-1500.0,0.00014739,2]
[399465113,1766381439902,-1152.24771279,0.00014739,2]
[399465114,1766381439911,-1500.0,0.00014739,2]
[399465115,1766381439921,-1500.0,0.00014739,2]
[399465116,1766381439931,-1500.0,0.00014739,2]
[399465117,1766381439941,-1500.0,0.00014739,2]
[399465118,1766381439951,-1500.0,0.00014739,2]
[399465119,1766381439960,-1500.0,0.00014739,2]
[399465120,1766381439970,-1500.0,0.00014739,2]
[399465121,1766381439979,-501.38196086,0.00014739,2]
[399465122,1766381439988,-1500.0,0.00014739,2]
[399465123,1766381439998,-1500.0,0.00014739,2]
[399465124,1766381440010,-1504.58016272,0.00014739,2]
[399465125,1766381440020,-1500.0,0.00014739,2]
[399465126,1766381440030,-597.93973627,0.00014739,2]
[399465127,1766381440040,-1500.0,0.00014739,2]
[399465128,1766381440049,-1500.0,0.00014739,2]
[399465129,1766381440058,-1500.0,0.00014739,2]
[399465130,1766381440068,-1500.0,0.00014739,2]
[399465131,1766381440078,-1500.0,0.00014739,2]
[399465132,1766381440088,-480.93651792,0.00014739,2]
[399465133,1766381440097,-500.0,0.00014739,2]
[399465134,1766381440107,-2056.87,0.00014739,2]
[399465135,1766381440116,-6714.30851753,0.00014779,2]
[399465136,1766381440126,-166.66,0.00014833,2]
[399465137,1766381440136,-25148.83872382,0.00014845,2]
[399465138,1766381440146,-226.5471914,0.000149,2]
[399465139,1766381440155,-451.43777448,0.00014912,2]
[399465140,1766381440165,-5014.92,0.00014999,2]
[399465141,1766381440174,-2041.02448075,0.00015,2]
[399465142,1766381440183,-1344.90035388,0.00015,14]
[399465143,1766381440193,-7945.49825452,0.00015,2]
[399465144,1766381440202,-21356.21903813,0.00015,2]
[399465145,1766381440212,-1154.92232765,0.00015,2]
[399465146,1766381440222,-25864.54250308,0.00015,2]
[399465147,1766381440231,-500.0,0.00015013,2]
[399465148,1766381440240,-2056.87,0.00015013,2]
[399465149,1766381440250,-151.0,0.00015035,2]
[399465150,1766381440260,-1000.0,0.00015037,2]
[399465151,1766381440269,-151.0,0.00015049,2]
[399465152,1766381440280,-1600.0,0.00015121,2]
[399465153,1766381440290,-6714.30851753,0.00015132,2]
[399465154,1766381440300,-25148.83872382,0.00015187,2]
[399465155,1766381440309,-150.0,0.00015203,2]
[399465156,1766381440319,-166.66,0.00015278,2]
[399465157,1766381440329,-659.1358272,0.00015287,2]
[399465158,1766381440339,-1502.21103807,0.00015287,2]
[399465159,1766381440348,-2000.0,0.00015287,2]
[399465160,1766381440359,-2000.0,0.00015287,2]
[399465161,1766381440368,-2000.0,0.00015287,2]
[399465162,1766381440378,-667.2591655,0.00015287,2]
[399465163,1766381440388,-2000.0,0.00015287,2]
[399465166,1766381440676,-1437.14852253,0.00015287,2]
[399465167,1766381440687,-1500.0,0.00015287,2]
[399465168,1766381440697,-1005.45508162,0.00015287,2]
[399465169,1766381440707,-2000.0,0.00015287,2]
[399465170,1766381440716,-2000.0,0.00015287,2]
[399465171,1766381440726,-459.78950383,0.00015287,2]
[399465172,1766381440735,-2000.0,0.00015287,2]
[399465173,1766381440745,-630.28190868,0.00015287,2]
[399465174,1766381440754,-1390.7850892,0.00015287,2]
[399465175,1766381440764,-500.0,0.00015287,2]
[399465176,1766381440774,-2056.87,0.00015287,2]
[399465177,1766381440783,-500.0,0.00015288,2]
[399465178,1766381440792,-433.0,0.00015288,2]
[399465179,1766381440802,-1517.64,0.000153,2]
[399465180,1766381440812,-505.93150973,0.000154,2]
[399465181,1766381440823,-6714.30851753,0.00015486,2]
[399465182,1766381440832,-500.0,0.00015493,2]
[399465183,1766381440842,-25148.83872382,0.0001553,2]
[399465184,1766381440851,-16703.53114941,0.00015556,2]
[399465185,1766381440861,-500.0,0.00015561,2]
[399465186,1766381440870,-2056.87,0.00015561,2]
[399465187,1766381440880,-627.49289015,0.00015579,2]
[399465188,1766381440890,-587.0,0.00015621,2]
[399465189,1766381440900,-587.0,0.00015621,2]
[399465190,1766381440909,-2351.0,0.00015715,2]
[399465191,1766381440919,-166.66,0.00015724,2]
[399465192,1766381440929,-2229.34280704,0.00015807,2]
[399465193,1766381440938,-2500.0,0.00015835,2]
[399465194,1766381440948,-1007.00799583,0.00015835,2]
[399465195,1766381440957,-2353.92874992,0.00015835,2]
[399465196,1766381440967,-2006.61121475,0.00015835,2]
[399465197,1766381440976,-2500.0,0.00015835,2]
[399465198,1766381440986,-1590.93800386,0.00015835,2]
[399465199,1766381440995,-300.59467454,0.00015835,2]
[399465200,1766381441006,-500.0,0.00015835,2]
[399465201,1766381441015,-2056.87,0.00015835,2]
[399465202,1766381441025,-6714.30851753,0.00015839,2]
[399465203,1766381441034,-1115.60769283,0.00015872,5]
[399465204,1766381441044,-25148.83872382,0.00015872,2]
[399465205,1766381441053,-200.0,0.00015881,2]
[399465206,1766381441062,-352.88004127,0.00015919,2]
[399465207,1766381441072,-2192.70775173,0.00015919,2]
[399465208,1766381441081,-183.14,0.0001593,2]
[399465209,1766381441091,-151.0,0.00015997,2]
[399465210,1766381441100,-774.62869,0.00016,2]
[399465211,1766381441110,-23722.5581067,0.00016,2]
[399465212,1766381441120,-381.44303006,0.00016,2]
[399465213,1766381441130,-1128092.77595893,0.00016,4]
[399465214,1766381441227,-27651.09163192,0.00016,4]
[399465215,1766381441244,-665166.56219254,0.00016,4]
[399465216,1766381441253,-627.49289015,0.00016019,2]
[399465217,1766381441263,-902.48239174,0.00016023,2]
[399465218,1766381441273,-272.20622186,0.000161,2]
[399465219,1766381441283,-256.92797377,0.000161,2]
[399465220,1766381441293,-2056.87,0.00016108,2]
[399465221,1766381441303,-500.0,0.00016109,2]
[399465222,1766381441312,-2192.70775169,0.00016115,2]
[399465223,1766381441323,-11990.05,0.00016123,2]
[399465224,1766381441332,-500.0,0.00016149,2]
[399465225,1766381441342,-200.0,0.00016149,2]
[399465226,1766381441351,-352.57653345,0.00016149,2]
[399465227,1766381441361,-207.4,0.00016149,2]
[399465228,1766381441371,-151.0,0.00016149,2]
[399465229,1766381441380,-215.0738,0.00016149,2]
[399465230,1766381441390,-223.0315306,0.00016149,2]
[399465231,1766381441399,-231.28369723,0.00016149,2]
[399465232,1766381441408,-239.84119403,0.00016149,2]
[399465233,1766381441418,-248.71531821,0.00016149,2]
[399465234,1766381441427,-257.91778498,0.00016149,2]
[399465235,1766381441437,-267.46074303,0.00016149,2]
[399465236,1766381441447,-151.0,0.00016149,2]
[399465237,1766381441457,-156.587,0.00016149,2]
[399465238,1766381441467,-162.380719,0.00016149,2]
[399465239,1766381441477,-153.6660154,0.00016149,2]
[399465240,1766381441487,-6714.30851753,0.00016193,2]
[399465241,1766381441496,-158.67617392,0.000162,2]
[399465242,1766381441506,-160.68439963,0.000162,2]
[399465243,1766381441517,-155.74604872,0.000162,2]
[399465244,1766381441527,-157.86754475,0.000162,2]
[399465245,1766381441536,-157.04290017,0.000162,2]
[399465246,1766381441545,-152.87156213,0.000162,2]
[399465247,1766381441555,-156.34624358,0.000162,2]
[399465248,1766381441564,-68109.06137707,0.000162,5]
[399465249,1766381441575,-1959.0,0.000162,2]
[399465250,1766381441584,-25148.83872382,0.00016215,2]
[399465251,1766381441594,-2192.70775169,0.00016311,2]
[399465252,1766381441603,-1859.68512571,0.00016338,2]
[399465253,1766381441612,-2056.87,0.00016382,2]
[399465254,1766381441622,-3000.0,0.00016383,2]
[399465255,1766381441635,-1331.2933,0.00016383,2]
[399465256,1766381441644,-359.51458071,0.00016383,2]
[399465257,1766381441653,-1490.09817043,0.0001639,2]
[399465258,1766381441663,-1000.0,0.000164,2]
[399465259,1766381441674,-1000.0,0.000164,2]
[399465260,1766381441683,-1000.0,0.000164,2]
[399465261,1766381441693,-1000.0,0.000164,2]
[399465262,1766381441703,-1000.0,0.000164,2]
[399465263,1766381441712,-1000.0,0.000164,2]
[399465264,1766381441722,-1000.0,0.000164,2]
[399465265,1766381441731,-1000.0,0.000164,2]
[399465266,1766381441741,-1000.0,0.000164,2]
[399465267,1766381441750,-1000.0,0.000164,2]
[399465268,1766381441759,-352.88004125,0.0001641,2]
[399465269,1766381441769,-1999.68848535,0.00016438,2]
[399465270,1766381441778,-1999.68848535,0.00016438,2]
[399465271,1766381441787,-1999.68848535,0.00016438,2]
[399465272,1766381441796,-1999.68848535,0.00016438,2]
[399465273,1766381441806,-1999.68848535,0.00016438,2]
[399465274,1766381441816,-1999.68848535,0.00016438,2]
[399465275,1766381441826,-1999.68848535,0.00016438,2]
[399465276,1766381441835,-1999.68848535,0.00016438,2]
[399465277,1766381441845,-1999.68848535,0.00016438,2]
[399465278,1766381441854,-1999.68848535,0.00016438,2]
[399465279,1766381441864,-1999.68848535,0.00016438,2]
[399465280,1766381441874,-1999.68848535,0.00016438,2]
[399465281,1766381441884,-1999.68848535,0.00016438,2]
[399465282,1766381441894,-1999.68848535,0.00016438,2]
[399465283,1766381441903,-1999.68848535,0.00016438,2]
[399465284,1766381441913,-1999.68848535,0.00016438,2]
[399465285,1766381441923,-1999.68848535,0.00016438,2]
[399465286,1766381441932,-1999.68848535,0.00016438,2]
[399465287,1766381441941,-1999.68848535,0.00016438,2]
[399465288,1766381441951,-1999.68848535,0.00016438,2]
[399465289,1766381441961,-1999.68848535,0.00016438,2]
[399465290,1766381441971,-1999.68848535,0.00016438,2]
[399465291,1766381441980,-1999.68848535,0.00016438,2]
[399465292,1766381441989,-1999.68848535,0.00016438,2]
[399465293,1766381441998,-1999.68848535,0.00016438,2]
[399465294,1766381442008,-1999.68848535,0.00016438,2]
[399465295,1766381442017,-1999.68848535,0.00016438,2]
[399465296,1766381442026,-1999.68848535,0.00016438,2]
[399465297,1766381442035,-1999.68848535,0.00016438,2]
[399465298,1766381442044,-1999.68848535,0.00016438,2]
[399465299,1766381442054,-1999.68848535,0.00016438,2]
[399465300,1766381442063,-1999.68848535,0.00016438,2]
[399465301,1766381442073,-1999.68848535,0.00016438,2]
[399465302,1766381442082,-1999.68848535,0.00016438,2]
[399465303,1766381442092,-1999.68848535,0.00016438,2]
[399465304,1766381442102,-1999.68848535,0.00016438,2]
[399465305,1766381442111,-1999.68848535,0.00016438,2]
[399465306,1766381442120,-1999.68848535,0.00016438,2]
[399465307,1766381442130,-1999.68848535,0.00016438,2]
[399465308,1766381442139,-1999.68848535,0.00016438,2]
[399465309,1766381442149,-1999.68848535,0.00016438,2]
[399465310,1766381442158,-1999.68848535,0.00016438,2]
[399465311,1766381442168,-1999.68848535,0.00016438,2]
[399465312,1766381442179,-1999.68848535,0.00016438,2]
[399465313,1766381442189,-1999.68848535,0.00016438,2]
[399465314,1766381442200,-1999.68848535,0.00016438,2]
[399465315,1766381442210,-1999.68848535,0.00016438,2]
[399465316,1766381442219,-1999.68848535,0.00016438,2]
[399465317,1766381442229,-1999.68848535,0.00016438,2]
[399465318,1766381442239,-1999.68848535,0.00016438,2]
[399465319,1766381442248,-1994.28392188,0.00016438,2]
[399465320,1766381442258,-1994.28392188,0.00016438,2]
[399465321,1766381442267,-1994.28392188,0.00016438,2]
[399465322,1766381442278,-1994.28392188,0.00016438,2]
[399465323,1766381442289,-1994.28392188,0.00016438,2]
[399465324,1766381442299,-1994.28392188,0.00016438,2]
[399465325,1766381442308,-1994.28392188,0.00016438,2]
[399465326,1766381442318,-1994.28392188,0.00016438,2]
[399465327,1766381442328,-1994.28392188,0.00016438,2]
[399465328,1766381442337,-1994.28392188,0.00016438,2]
[399465329,1766381442347,-1994.28392188,0.00016438,2]
[399465330,1766381442357,-1994.28392188,0.00016438,2]
[399465331,1766381442367,-1994.28392188,0.00016438,2]
[399465332,1766381442376,-1994.28392188,0.00016438,2]
[399465333,1766381442387,-1994.28392188,0.00016438,2]
[399465334,1766381442397,-1994.28392188,0.00016438,2]
[399465335,1766381442407,-1994.28392188,0.00016438,2]
[399465336,1766381442417,-1994.28392188,0.00016438,2]
[399465337,1766381442427,-1994.28392188,0.00016438,2]
[399465338,1766381442437,-1994.28392188,0.00016438,2]
[399465339,1766381442447,-1994.28392188,0.00016438,2]
[399465340,1766381442457,-1994.28392188,0.00016438,2]
[399465341,1766381442468,-1994.28392188,0.00016438,2]
[399465342,1766381442478,-1994.28392188,0.00016438,2]
[399465343,1766381442488,-1994.28392188,0.00016438,2]
[399465344,1766381442498,-1994.28392188,0.00016438,2]
[399465345,1766381442507,-1994.28392188,0.00016438,2]
[399465346,1766381442516,-1994.28392188,0.00016438,2]
[399465347,1766381442525,-1994.28392188,0.00016438,2]
[399465348,1766381442534,-1994.28392188,0.00016438,2]
[399465349,1766381442543,-1994.28392188,0.00016438,2]
[399465350,1766381442552,-1994.28392188,0.00016438,2]
[399465351,1766381442562,-1994.28392188,0.00016438,2]
[399465352,1766381442571,-1994.28392188,0.00016438,2]
[399465353,1766381442580,-1994.28392188,0.00016438,2]
[399465354,1766381442589,-1994.28392188,0.00016438,2]
[399465355,1766381442598,-1994.28392186,0.00016438,2]
[399465356,1766381442607,-800.66640866,0.00016438,2]
[399465357,1766381442616,-627.49289015,0.0001646,2]
[399465358,1766381442628,-902.48239172,0.00016462,2]
[399465359,1766381442638,-500.26932841,0.00016473,2]
[399465360,1766381442648,-500.0,0.00016473,2]
[399465361,1766381442658,-500.0,0.00016473,2]
[399465362,1766381442667,-500.63864721,0.00016473,2]
[399465363,1766381442678,-500.53011343,0.00016473,2]
[399465364,1766381442687,-500.84493932,0.00016473,2]
[399465365,1766381442697,-500.0,0.00016473,2]
[399465366,1766381442706,-519.00415051,0.00016473,2]
[399465367,1766381442716,-500.23459526,0.00016473,2]
[399465368,1766381442725,-500.89063362,0.00016473,2]
[399465369,1766381442734,-500.0,0.00016473,2]
[399465370,1766381442743,-500.4866391,0.00016473,2]
[399465371,1766381442752,-182.65808094,0.00016473,2]
[399465372,1766381442762,-500.23422882,0.00016473,2]
[399465373,1766381442771,-500.0,0.00016473,2]
[399465374,1766381442780,-500.28027426,0.00016473,2]
[399465375,1766381442789,-500.40105858,0.00016473,2]
[399465376,1766381442798,-500.0,0.00016473,2]
[399465377,1766381442808,-500.25404697,0.00016473,2]
[399465378,1766381442817,-500.92519729,0.00016473,2]
[399465379,1766381442827,-570.44343091,0.00016473,2]
[399465380,1766381442836,-500.59656143,0.00016473,2]
[399465381,1766381442846,-162.4264826,0.00016473,2]
[399465382,1766381442856,-500.71610448,0.00016473,2]
[399465383,1766381442865,-500.0,0.00016473,2]
[399465384,1766381442875,-500.94017287,0.00016473,2]
[399465385,1766381442885,-160.22398459,0.00016473,2]
[399465386,1766381442894,-160.23136935,0.00016473,2]
[399465387,1766381442903,-500.84177563,0.00016473,2]
[399465388,1766381442912,-500.76356067,0.00016473,2]
[399465389,1766381442921,-500.0,0.00016473,2]
[399465390,1766381442931,-500.88851044,0.00016473,2]
[399465391,1766381442940,-160.23033873,0.00016473,2]
[399465392,1766381442949,-500.85006285,0.00016473,2]
[399465393,1766381442959,-500.5380025,0.00016473,2]
[399465394,1766381442968,-334.69874754,0.00016473,2]
[399465395,1766381442978,-500.0,0.00016473,2]
[399465396,1766381442987,-556.12570782,0.00016473,2]
[399465397,1766381442995,-500.89704022,0.00016473,2]
[399465398,1766381443072,-639.90034145,0.00016473,2]
[399465399,1766381443082,-500.93365607,0.00016473,2]
[399465400,1766381443091,-500.14110793,0.00016473,2]
[399465401,1766381443102,-500.0,0.00016473,2]
[399465402,1766381443112,-500.0,0.00016473,2]
[399465403,1766381443121,-500.0,0.00016473,2]
[399465404,1766381443131,-500.0,0.00016473,2]
[399465405,1766381443140,-566.05199029,0.00016473,2]
[399465406,1766381443150,-500.23431497,0.00016473,2]
[399465407,1766381443159,-500.364387,0.00016473,2]
[399465408,1766381443170,-500.0,0.00016473,2]
[399465409,1766381443180,-500.0,0.00016473,2]
[399465410,1766381443190,-577.70558009,0.00016473,2]
[399465411,1766381443199,-160.22953259,0.00016473,2]
[399465412,1766381443209,-160.22953204,0.00016473,2]
[399465413,1766381443219,-500.31559723,0.00016473,2]
[399465414,1766381443228,-500.23816043,0.00016473,2]
[399465415,1766381443237,-500.0,0.00016473,2]
[399465416,1766381443247,-500.0,0.00016473,2]
[399465417,1766381443257,-500.0,0.00016473,2]
[399465419,1766381443266,-500.0,0.00016473,2]
[399465421,1766381443276,-500.0,0.00016473,2]
[399465422,1766381443286,-150.2134934,0.00016473,2]
[399465423,1766381443297,-500.0,0.00016473,2]
[399465424,1766381443307,-500.0,0.00016473,2]
[399465425,1766381443317,-500.47037435,0.00016473,2]
[399465426,1766381443326,-500.0,0.00016473,2]
[399465427,1766381443335,-500.19873097,0.00016473,2]
[399465428,1766381443345,-500.0,0.00016473,2]
[399465429,1766381443356,-500.0,0.00016473,2]
[399465430,1766381443366,-500.0,0.00016473,2]
[399465431,1766381443376,-500.69670875,0.00016473,2]
[399465432,1766381443386,-2192.70775169,0.00016508,2]
[399465433,1766381443395,-6714.30851753,0.00016546,2]
[399465434,1766381443406,-5408.0,0.00016548,2]
[399465435,1766381443415,-25148.83872382,0.00016557,2]
[399465436,1766381443424,-736.0,0.00016587,2]
[399465437,1766381443433,-1000.0,0.000166,2]
[399465438,1766381443443,-5408.0,0.00016605,2]
[399465439,1766381443452,-5408.0,0.00016614,2]
[399465440,1766381443462,-1859.68512571,0.00016619,2]
[399465441,1766381443471,-551.73,0.00016649,2]
[399465442,1766381443479,-2056.87,0.00016656,2]
[399465443,1766381443488,-3018.19191469,0.0001666,2]
[399465444,1766381443497,-5408.0,0.00016673,2]
[399465445,1766381443506,-2192.70775169,0.00016704,2]
[399465446,1766381443515,-4047.0,0.00016721,2]
[399465447,1766381443524,-5408.0,0.00016769,2]
[399465448,1766381443533,-1002.5,0.00016795,2]
[399465449,1766381443542,-1600.0,0.00016801,2]
[399465450,1766381443551,-5408.0,0.00016801,2]
[399465451,1766381443560,-5408.0,0.00016819,2]
[399465452,1766381443569,-5408.0,0.00016828,2]
[399465453,1766381443578,-25000.0,0.0001683,3]
[399465454,1766381443587,-349.26999972,0.00016836,2]
[399465455,1766381443595,-508.44264372,0.00016836,2]
[399465456,1766381443604,-25000.0,0.00016838,3]
[399465457,1766381443614,-201.47691223,0.00016842,2]
[399465458,1766381443626,-25000.0,0.00016847,3]
[399465459,1766381443638,-5408.0,0.0001685,2]
[399465460,1766381443647,-151.0,0.00016853,2]
[399465461,1766381443658,-25000.0,0.00016856,3]
[399465462,1766381443667,-200.0,0.00016863,2]
[399465463,1766381443676,-200.0,0.00016864,2]
[399465464,1766381443686,-200.0,0.00016864,2]
[399465465,1766381443695,-200.0,0.00016864,2]
[399465466,1766381443706,-200.0,0.00016864,2]
[399465467,1766381443715,-25000.0,0.00016865,3]
[399465468,1766381443724,-25000.0,0.00016874,3]
[399465469,1766381443734,-25000.0,0.00016882,3]
[399465470,1766381443744,-4047.0,0.00016887,2]
[399465471,1766381443754,-25000.0,0.00016891,3]
[399465472,1766381443764,-500.0,0.00016899,2]
[399465473,1766381443774,-500.0,0.00016899,2]
[399465474,1766381443784,-500.0,0.00016899,2]
[399465475,1766381443793,-500.0,0.00016899,2]
[399465476,1766381443802,-500.0,0.00016899,2]
[399465477,1766381443811,-500.0,0.00016899,2]
[399465478,1766381443820,-500.0,0.00016899,2]
[399465479,1766381443830,-500.0,0.00016899,2]
[399465480,1766381443839,-500.0,0.00016899,2]
[399465481,1766381443848,-500.0,0.00016899,2]
[399465482,1766381443857,-500.0,0.00016899,2]
[399465483,1766381443866,-500.0,0.00016899,2]
[399465484,1766381443875,-500.0,0.00016899,2]
[399465485,1766381443883,-500.0,0.00016899,2]
[399465486,1766381443892,-373.89365293,0.00016899,2]
[399465487,1766381443902,-500.0,0.00016899,2]
[399465488,1766381443911,-500.0,0.00016899,2]
[399465489,1766381443920,-10000.0,0.000169,2]
[399465490,1766381443929,-25000.0,0.000169,3]
[399465491,1766381443938,-6714.30851753,0.000169,2]
[399465492,1766381443947,-627.49289015,0.000169,2]
[399465493,1766381443956,-352.88004125,0.000169,2]
[399465494,1766381443965,-1859.68512571,0.000169,2]
[399465495,1766381443975,-25148.83872382,0.000169,2]
[399465496,1766381443983,-2192.70775169,0.000169,2]
[399465497,1766381443992,-902.48239172,0.000169,2]
[399465498,1766381444001,-10939.0,0.000169,2]
[399465499,1766381444012,-1000.0,0.00016917,2]
[399465500,1766381444022,-2056.87,0.0001693,2]
[399465501,1766381444031,-236.82314427,0.00016931,2]
[399465502,1766381444041,-1604.0,0.00016937,2]
[399465503,1766381444052,-1604.0,0.00016948,2]
[399465504,1766381444062,-304.0,0.00016959,2]
[399465505,1766381444072,-150.0,0.00016973,2]
[399465506,1766381444082,-1490.09817043,0.0001699,2]
[399465507,1766381444091,-5408.0,0.00016996,2]
[399465508,1766381444101,-151.0,0.00016997,2]
[399465509,1766381444110,-1115.60769283,0.00016998,5]
[399465510,1766381444120,-258360.181566,0.00016999,2]
[399465511,1766381444130,-4963.1267575,0.00016999,2]
[399465512,1766381444140,-1488.9380273,0.00016999,2]
[399465513,1766381444150,-615406.0188901,0.00016999,2]
[399465514,1766381444161,-300.0,0.00016999,2]
[399465515,1766381444171,-14755.3228548,0.00016999,2]
[399465516,1766381444181,-2552.4651896,0.00016999,2]
[399465517,1766381444191,-300.0,0.00016999,2]
[399465518,1766381444201,-666.0,0.00016999,2]
[399465519,1766381444211,-300.0,0.00016999,2]
[399465520,1766381444220,-300.0,0.00016999,2]
[399465521,1766381444230,-1115.60769283,0.00016999,5]
[399465522,1766381444240,-1115.60769282,0.00016999,5]
[399465523,1766381444249,-1115.60769283,0.00016999,5]
[399465524,1766381444259,-1115.60769283,0.00016999,5]
[399465525,1766381444269,-1115.60769283,0.00016999,5]
[399465526,1766381444280,-1115.60769283,0.00016999,5]
[399465527,1766381444291,-300.0,0.00016999,2]
[399465528,1766381444300,-666.0,0.00016999,2]